bitfinex/quotes_BTCUSD_20250822
["timestamp","ask_amount","ask_price","bid_price","bid_amount"]
[1755873189729,0.05,115510.0,115500.0,0.00222202]
[1755873189950,0.05,115510.0,115500.0,0.23934202]
[1755873190391,0.05,115510.0,115500.0,0.24134202]
[1755873190629,0.05,115510.0,115500.0,0.78209942]
[1755873190834,0.05,115510.0,115500.0,0.24234202]
[1755873191048,0.05,115510.0,115500.0,0.86998417]
[1755873191262,0.05,115530.0,115510.0,0.17314373]
[1755873191438,0.05,115520.0,115510.0,0.62764215]
[1755873191688,0.05,115530.0,115510.0,0.32596475]
[1755873191891,0.05,115530.0,115510.0,0.86672215]
[1755873192097,0.05,115520.0,115510.0,0.86672215]
[1755873192309,0.05,115520.0,115510.0,0.32596475]
[1755873192527,0.05,115520.0,115510.0,0.32788475]
[1755873192742,0.05,115520.0,115510.0,0.32794475]
[1755873192942,0.01625371,115550.0,115510.0,1.05050458]
[1755873193152,0.01354926,115550.0,115530.0,0.5407574]
[1755873193360,0.06354926,115550.0,115540.0,0.30344]
[1755873193530,0.05209,115550.0,115540.0,0.30344]
[1755873193739,0.14198475,115550.0,115540.0,0.06656]
[1755873193985,0.13897475,115550.0,115540.0,0.3034]
[1755873194609,0.13897475,115550.0,115540.0,0.30388202]
[1755873195042,0.05,115550.0,115540.0,0.30503202]
[1755873195522,0.05,115550.0,115540.0,0.30488202]
[1755873196639,0.05209,115550.0,115540.0,0.06804202]
[1755873196847,0.05209,115550.0,115540.0,0.30476202]
[1755873197047,0.05209,115550.0,115540.0,0.30468202]
[1755873198051,0.05,115550.0,115540.0,0.30468202]
[1755873198534,0.00270422,115560.0,115540.0,0.30960202]
[1755873198732,0.03094811,115580.0,115540.0,0.39342677]
[1755873198939,0.05,115550.0,115540.0,0.30893202]
[1755873199571,0.09229271,115570.0,115540.0,0.30893202]
[1755873199739,0.08958873,115570.0,115540.0,0.30893202]
[1755873199952,0.05,115550.0,115540.0,0.30893202]
[1755873200163,0.05,115550.0,115540.0,0.30368202]
[1755873200382,0.05202,115550.0,115540.0,0.06704202]
[1755873200589,0.05202,115550.0,115540.0,0.30344202]
[1755873200590,0.05472445,115550.0,115540.0,0.30344202]
[1755873200800,0.05472445,115550.0,115540.0,0.30544202]
[1755873200801,0.05202,115550.0,115540.0,0.30544202]
[1755873201228,0.05,115530.0,115520.0,0.6073174]
[1755873201427,0.05202,115530.0,115520.0,0.06656]
[1755873201679,0.05495,115530.0,115520.0,0.30288]
[1755873201891,0.06035984,115530.0,115520.0,0.06656]
[1755873202105,0.14724459,115530.0,115520.0,0.06656]
[1755873202326,0.14724459,115530.0,115520.0,0.30288]
[1755873202564,0.13958967,115530.0,115520.0,0.8436874]
[1755873202762,0.00270469,115540.0,115520.0,0.8436874]
[1755873202966,0.05,115540.0,115530.0,0.5407574]
[1755873203179,0.05,115530.0,115520.0,0.30288]
[1755873203643,0.05,115530.0,115520.0,0.30703]
[1755873203888,0.05,115530.0,115520.0,0.8477874]
[1755873204114,0.03008033,115580.0,115520.0,0.93467215]
[1755873204345,0.0031857,115570.0,115560.0,0.5407574]
[1755873204573,0.0531857,115570.0,115560.0,0.24062]
[1755873204802,0.0531857,115570.0,115560.0,0.23831]
[1755873205041,0.0531857,115570.0,115560.0,0.2362]
[1755873205276,0.05588968,115570.0,115560.0,0.2362]
[1755873205736,0.05790968,115570.0,115560.0,0.2362]
[1755873205938,0.05,115540.0,115520.0,0.001]
[1755873206147,0.05,115520.0,115510.0,0.0011]
[1755873206353,0.05,115520.0,115510.0,0.23925]
[1755873206572,0.05,115520.0,115510.0,0.94203582]
[1755873206781,0.05,115530.0,115510.0,1.2020636]
[1755873206991,0.05,115540.0,115520.0,0.70494582]
[1755873207195,0.00270422,115560.0,115530.0,0.09139475]
[1755873207409,0.05,115550.0,115540.0,1.00530582]
[1755873207619,0.05,115550.0,115540.0,1.09669057]
[1755873208480,0.05,115550.0,115540.0,0.39390475]
[1755873208694,0.05,115550.0,115540.0,1.09969057]
[1755873208902,0.05,115560.0,115540.0,1.09969057]
[1755873209136,0.05,115550.0,115540.0,0.39690475]
[1755873209386,0.05,115550.0,115540.0,0.39560475]
[1755873209587,0.05,115550.0,115540.0,1.09839057]
[1755873209800,0.05,115550.0,115540.0,0.39560475]
[1755873210007,0.05,115560.0,115540.0,1.09839057]
[1755873210219,0.05,115550.0,115540.0,0.86243057]
[1755873210447,0.05,115560.0,115540.0,1.10015057]
[1755873210653,0.05,115550.0,115540.0,1.10015057]
[1755873210858,0.05,115550.0,115540.0,1.13648188]
[1755873211075,0.05,115550.0,115540.0,1.13348188]
[1755873211279,0.05048202,115580.0,115550.0,0.5217395]
[1755873211487,0.05048202,115580.0,115560.0,0.60301501]
[1755873211488,0.05,115570.0,115560.0,0.60301501]
[1755873211896,0.05,115570.0,115560.0,0.60512501]
[1755873212122,0.00048202,115580.0,115560.0,0.63114001]
[1755873212330,0.05048202,115580.0,115570.0,0.23568]
[1755873212545,0.00048202,115580.0,115570.0,0.23677]
[1755873212783,0.05048202,115580.0,115570.0,0.23784]
[1755873213041,0.05048202,115580.0,115570.0,0.23667]
[1755873213271,0.05048202,115580.0,115570.0,0.23666]
[1755873213486,0.05048202,115580.0,115570.0,0.23777]
[1755873213895,0.05048202,115580.0,115570.0,0.94055582]
[1755873214196,0.05048202,115580.0,115570.0,0.27768596]
[1755873214413,0.05048202,115580.0,115570.0,0.27760596]
[1755873214814,0.05048202,115580.0,115570.0,0.98039178]
[1755873215353,0.05048202,115580.0,115570.0,0.27760596]
[1755873215579,0.05048202,115580.0,115570.0,0.27649596]
[1755873215791,0.05048202,115580.0,115570.0,0.04211596]
[1755873216006,0.05048202,115580.0,115570.0,0.98034178]
[1755873216206,0.05048202,115580.0,115570.0,0.27531596]
[1755873216410,0.05048202,115580.0,115570.0,0.27527596]
[1755873216634,0.05048202,115580.0,115570.0,0.27835596]
[1755873217408,0.05048202,115580.0,115570.0,0.98114178]
[1755873218350,0.05048202,115580.0,115570.0,0.98117178]
[1755873218561,0.05048202,115580.0,115570.0,0.98226178]
[1755873218757,0.00048202,115580.0,115570.0,0.27947596]
[1755873218970,0.00048202,115580.0,115570.0,0.98226178]
[1755873219185,0.05048202,115580.0,115570.0,0.98126178]
[1755873219396,0.05048202,115580.0,115570.0,0.98026178]
[1755873219597,0.05048202,115580.0,115570.0,0.98217178]
[1755873219849,0.05048202,115580.0,115570.0,0.27938596]
[1755873220044,0.05543202,115580.0,115570.0,0.04191596]
[1755873220249,0.05250202,115580.0,115570.0,0.27703596]
[1755873220461,0.05048202,115580.0,115570.0,0.24223]
[1755873220701,0.05543202,115580.0,115570.0,0.005]
[1755873220920,0.39543202,115580.0,115570.0,0.005]
[1755873221124,0.48231677,115580.0,115570.0,0.24008]
[1755873221336,0.48231677,115580.0,115570.0,0.23704]
[1755873221916,0.48231677,115580.0,115570.0,0.23504]
[1755873222327,0.05,115550.0,115540.0,0.31293131]
[1755873222489,0.05,115550.0,115540.0,0.34188131]
[1755873222897,0.05,115550.0,115540.0,0.34192131]
[1755873223481,0.05,115550.0,115540.0,1.04470713]
[1755873223689,0.05,115550.0,115540.0,1.64469091]
[1755873224129,0.05,115560.0,115540.0,1.64469091]
[1755873224361,0.05,115560.0,115550.0,1.30275581]
[1755873224577,0.05,115560.0,115550.0,1.31344007]
[1755873224791,0.00048202,115580.0,115560.0,0.17306988]
[1755873225006,0.00048202,115580.0,115570.0,0.23484]
[1755873225215,0.05048202,115580.0,115560.0,0.78980057]
[1755873225440,0.05048202,115580.0,115560.0,0.78967057]
[1755873225441,0.05,115570.0,115560.0,0.78967057]
[1755873225677,0.05,115570.0,115560.0,0.32278475]
[1755873225887,0.05,115570.0,115560.0,0.32274475]
[1755873226098,0.00048202,115580.0,115560.0,0.42798475]
[1755873226299,0.05048202,115580.0,115570.0,0.70583582]
[1755873226502,0.05,115570.0,115560.0,1.36749057]
[1755873226717,0.05,115570.0,115560.0,1.36860057]
[1755873226948,0.05,115570.0,115560.0,1.37160057]
[1755873227355,0.05,115570.0,115560.0,0.08688475]
[1755873227556,0.05144,115570.0,115560.0,0.32256475]
[1755873227990,0.05144,115570.0,115560.0,0.23468]
[1755873228182,0.05144,115570.0,115550.0,0.0005]
[1755873228183,0.05,115560.0,115550.0,0.0005]
[1755873228414,0.05,115560.0,115550.0,0.2351]
[1755873228635,0.05195,115560.0,115550.0,0.2351]
[1755873228835,0.05,115560.0,115550.0,0.23714]
[1755873229036,0.05,115560.0,115550.0,0.94216582]
[1755873229192,0.05,115560.0,115550.0,0.23714]
[1755873229611,0.05,115560.0,115550.0,0.2351]
[1755873229983,0.05516,115560.0,115550.0,0.23502]
[1755873230420,0.05516,115560.0,115550.0,0.0005]
[1755873230421,0.05195,115560.0,115550.0,0.0005]
[1755873230646,0.05195,115560.0,115550.0,0.23502]
[1755873230647,0.39516,115560.0,115550.0,0.23502]
[1755873230869,0.40870639,115560.0,115550.0,0.23502]
[1755873231077,0.01354639,115560.0,115550.0,0.23584]
[1755873231292,0.06354639,115560.0,115550.0,0.23584]
[1755873231516,0.06549639,115560.0,115550.0,0.23502]
[1755873231976,0.06354639,115560.0,115550.0,0.23502]
[1755873232290,0.06454639,115560.0,115550.0,0.23502]
[1755873232549,0.06354639,115560.0,115550.0,0.23512]
[1755873232808,0.01354639,115560.0,115550.0,0.94080582]
[1755873233024,0.05,115560.0,115550.0,0.94080582]
[1755873233247,0.05,115560.0,115550.0,1.36769057]
[1755873233463,0.01402696,115580.0,115550.0,1.36769057]
[1755873233683,0.05,115560.0,115550.0,0.66200475]
[1755873233898,0.05,115560.0,115550.0,1.36479057]
[1755873234339,0.05,115560.0,115550.0,0.66218475]
[1755873234555,0.05,115560.0,115550.0,1.36497057]
[1755873234773,0.05,115570.0,115550.0,1.36497057]
[1755873234989,0.00048202,115580.0,115560.0,0.78967057]
[1755873235207,0.00048202,115580.0,115570.0,0.23553]
[1755873235427,0.00048202,115580.0,115570.0,1.53932586]
[1755873235659,0.05048202,115580.0,115570.0,1.57427057]
[1755873235938,0.00048202,115580.0,115570.0,1.34007057]
[1755873236156,0.00048202,115580.0,115570.0,1.57419057]
[1755873236588,0.05048202,115580.0,115570.0,1.74724586]
[1755873236801,0.05048202,115580.0,115570.0,1.74824586]
[1755873237032,0.05048202,115580.0,115570.0,0.55841775]
[1755873237467,0.05048202,115580.0,115570.0,1.26120357]
[1755873237679,0.05048202,115580.0,115570.0,0.55945775]
[1755873237885,0.05048202,115580.0,115570.0,1.26224357]
[1755873238714,0.05048202,115580.0,115570.0,0.32426775]
[1755873238927,0.05048202,115580.0,115570.0,0.55948775]
[1755873239146,0.05048202,115580.0,115570.0,0.55826775]
[1755873239562,0.05048202,115580.0,115570.0,1.26400357]
[1755873239773,0.00048202,115580.0,115570.0,1.26400357]
[1755873240191,0.05048202,115580.0,115570.0,1.26400357]
[1755873240407,0.05048202,115580.0,115570.0,0.56121775]
[1755873240840,0.05048202,115580.0,115570.0,1.10241204]
[1755873240841,0.00048202,115580.0,115570.0,1.10241204]
[1755873241053,0.00048202,115580.0,115570.0,1.61546733]
[1755873241262,0.05,115590.0,115580.0,0.34]
[1755873241473,0.05,115590.0,115580.0,0.94904429]
[1755873241687,0.05,115590.0,115580.0,0.94912429]
[1755873241903,0.05,115590.0,115580.0,0.40793]
[1755873242121,0.05195,115590.0,115580.0,0.06652]
[1755873242344,0.05195,115590.0,115580.0,0.3002]
[1755873242561,0.05195,115590.0,115580.0,0.06852]
[1755873242785,0.05530448,115590.0,115580.0,0.30216]
[1755873243003,0.22832982,115590.0,115580.0,0.06852]
[1755873243245,0.34021457,115590.0,115580.0,0.30208]
[1755873243506,0.34021457,115590.0,115580.0,0.23556]
[1755873244156,0.34221457,115590.0,115580.0,0.23356]
[1755873244379,0.00514448,115590.0,115580.0,0.87228905]
[1755873244594,0.00514448,115590.0,115580.0,0.69924874]
[1755873244821,0.01099785,115600.0,115590.0,0.17302534]
[1755873245035,0.01099785,115590.0,115580.0,1.11117147]
[1755873245253,0.01099785,115590.0,115580.0,1.58421178]
[1755873245458,0.01108111,115600.0,115590.0,0.34]
[1755873245670,8.326e-05,115600.0,115590.0,1.12613338]
[1755873245910,0.01108111,115600.0,115590.0,1.12613338]
[1755873246148,0.01108111,115600.0,115590.0,0.42110475]
[1755873246356,0.01108111,115600.0,115590.0,1.12313338]
[1755873246811,0.01108111,115600.0,115590.0,0.42110475]
[1755873247036,0.01108111,115600.0,115590.0,1.12613338]
[1755873248149,0.01108111,115600.0,115590.0,0.42410475]
[1755873248365,0.01108111,115600.0,115590.0,1.12613338]
[1755873248802,0.01108111,115600.0,115590.0,1.12913338]
[1755873249014,0.01108111,115600.0,115590.0,0.42710475]
[1755873249227,0.01108111,115600.0,115590.0,1.12913338]
[1755873249656,0.01108111,115600.0,115590.0,0.42710475]
[1755873249871,0.01108111,115600.0,115590.0,1.12913338]
[1755873252088,0.01108111,115600.0,115590.0,0.43818575]
[1755873252304,0.01108111,115600.0,115590.0,1.14021438]
[1755873253157,0.01108111,115600.0,115590.0,0.43818575]
[1755873253386,0.01108111,115600.0,115590.0,1.14021438]
[1755873253803,0.01108111,115600.0,115590.0,0.43818575]
[1755873254021,0.01108111,115600.0,115590.0,1.14203438]
[1755873254235,0.01108111,115600.0,115590.0,1.37603438]
[1755873255992,0.01108111,115600.0,115590.0,1.37483438]
[1755873256239,0.01303111,115600.0,115590.0,1.37279438]
[1755873256507,0.01108111,115600.0,115590.0,0.67076575]
[1755873256746,0.01303111,115600.0,115590.0,0.67076575]
[1755873256957,0.01108111,115600.0,115590.0,0.67076575]
[1755873257367,0.01108111,115600.0,115590.0,1.37486438]
[1755873258075,0.01108111,115600.0,115590.0,1.37605438]
[1755873259126,8.326e-05,115600.0,115590.0,1.54907972]
[1755873259357,0.01108111,115600.0,115590.0,1.37605438]
[1755873260263,8.326e-05,115600.0,115590.0,1.37605438]
[1755873260476,0.01108111,115600.0,115590.0,1.37605438]
[1755873260891,8.326e-05,115600.0,115590.0,0.67402575]
[1755873261103,0.01108111,115600.0,115590.0,1.37605438]
[1755873261767,0.01108111,115600.0,115590.0,0.67402575]
[1755873261972,0.01108111,115600.0,115590.0,1.37605438]
[1755873262409,0.01108111,115600.0,115590.0,1.38797518]
[1755873262410,8.326e-05,115600.0,115590.0,1.38797518]
[1755873262639,0.01108111,115600.0,115590.0,1.38797518]
[1755873263082,8.326e-05,115600.0,115590.0,1.21494984]
[1755873263296,0.01108111,115600.0,115590.0,1.21494984]
[1755873263764,0.01108111,115600.0,115590.0,0.98095984]
[1755873263978,0.01108111,115600.0,115590.0,0.67207575]
[1755873264197,0.01108111,115600.0,115590.0,1.21299984]
[1755873264412,0.01108111,115600.0,115590.0,0.67000575]
[1755873264623,0.01108111,115600.0,115590.0,1.21298984]
[1755873264839,0.01108111,115600.0,115590.0,1.21380984]
[1755873265043,0.01108111,115600.0,115590.0,1.38683518]
[1755873265044,8.326e-05,115600.0,115590.0,1.38683518]
[1755873265249,0.01108111,115600.0,115590.0,0.84591109]
[1755873265453,0.01108111,115600.0,115590.0,0.98176984]
[1755873265666,8.326e-05,115600.0,115590.0,0.98176984]
[1755873265884,8.326e-05,115600.0,115590.0,0.67268575]
[1755873266090,0.01108111,115600.0,115590.0,1.21360984]
[1755873266730,0.01108111,115600.0,115590.0,0.67268575]
[1755873266933,0.01108111,115600.0,115590.0,1.21360984]
[1755873267980,0.01108111,115600.0,115590.0,1.38663518]
[1755873268184,0.01108111,115600.0,115590.0,1.21360984]
[1755873268693,0.01108111,115600.0,115590.0,1.21340984]
[1755873269970,0.06652,115670.0,115610.0,0.05]
[1755873270200,0.00211,115620.0,115610.0,0.59092409]
[1755873270405,0.00211,115620.0,115610.0,0.88888409]
[1755873270616,0.00211,115620.0,115610.0,0.91489009]
[1755873271185,0.00211,115620.0,115610.0,1.25489009]
[1755873271768,0.00211,115620.0,115610.0,0.713966]
[1755873271981,0.00211,115620.0,115610.0,1.25489009]
[1755873272190,0.00211,115620.0,115610.0,0.713966]
[1755873272404,0.00211,115620.0,115610.0,1.25489009]
[1755873272609,0.00211,115620.0,115610.0,1.25789009]
[1755873272964,0.00211,115620.0,115610.0,0.717966]
[1755873273166,0.00211,115620.0,115610.0,1.25889009]
[1755873273686,0.00211,115620.0,115610.0,1.29847655]
[1755873274933,0.0025,115640.0,115610.0,1.30297655]
[1755873275143,0.00264439,115640.0,115620.0,0.54092409]
[1755873275348,0.00211,115630.0,115620.0,0.54092409]
[1755873275549,0.00211,115630.0,115620.0,0.77192409]
[1755873275719,0.00211,115630.0,115620.0,0.231]
[1755873275930,0.00211,115630.0,115620.0,0.77192409]
[1755873276127,0.00211,115630.0,115620.0,0.231]
[1755873276339,0.00014439,115640.0,115620.0,0.77308409]
[1755873276566,0.00014439,115640.0,115630.0,0.93321615]
[1755873276775,0.00014439,115640.0,115630.0,0.93312409]
[1755873276977,0.00014439,115640.0,115630.0,0.95812409]
[1755873277612,0.00014439,115640.0,115630.0,1.04500884]
[1755873277860,0.00014439,115640.0,115630.0,1.11565837]
[1755873278074,0.00014439,115640.0,115630.0,1.04500884]
[1755873278903,0.00014439,115640.0,115630.0,1.04800884]
[1755873279080,0.00014439,115640.0,115630.0,1.22097433]
[1755873279284,0.00014439,115640.0,115630.0,1.05300884]
[1755873280047,0.00014439,115640.0,115630.0,0.51208475]
[1755873280265,0.00014439,115640.0,115630.0,1.05300884]
[1755873280478,0.00014439,115640.0,115630.0,1.22597433]
[1755873280892,0.00014439,115640.0,115630.0,0.51208475]
[1755873281098,0.00014439,115640.0,115630.0,1.05300884]
[1755873281587,0.00014439,115640.0,115630.0,1.28344884]
[1755873282646,0.00014439,115640.0,115630.0,0.74252475]
[1755873283275,0.00014439,115640.0,115630.0,1.28344884]
[1755873284002,0.00014439,115640.0,115630.0,0.74252475]
[1755873284224,0.00014439,115640.0,115630.0,1.28344884]
[1755873285232,0.00014439,115640.0,115630.0,1.45641433]
[1755873285656,0.00014439,115640.0,115630.0,0.91549024]
[1755873285876,0.00014439,115640.0,115630.0,1.28344884]
[1755873286242,0.00014439,115640.0,115630.0,0.74252475]
[1755873286447,0.00014439,115640.0,115630.0,1.28344884]
[1755873286699,0.00014439,115640.0,115630.0,1.45641433]
[1755873287039,0.00014439,115640.0,115630.0,0.91549024]
[1755873287468,0.00014439,115640.0,115630.0,1.45641433]
[1755873287670,0.00014439,115640.0,115630.0,1.28344884]
[1755873288313,0.00226439,115640.0,115630.0,0.74239475]
[1755873288526,0.00475439,115640.0,115630.0,0.058]
[1755873288696,0.00475439,115640.0,115630.0,0.23772]
[1755873288921,0.00475439,115640.0,115630.0,0.28772]
[1755873289303,0.00475439,115640.0,115630.0,0.008]
[1755873289304,0.00226439,115640.0,115630.0,0.008]
[1755873289483,0.00475439,115640.0,115630.0,0.008]
[1755873289684,0.00475439,115640.0,115630.0,0.003]
[1755873289685,0.09163914,115640.0,115630.0,0.003]
[1755873289910,0.27323719,115640.0,115610.0,0.092526]
[1755873290116,0.27323719,115640.0,115620.0,0.2296]
[1755873290117,0.00249,115630.0,115620.0,0.2296]
[1755873290311,0.09149475,115630.0,115620.0,0.2296]
[1755873292001,0.00212,115630.0,115620.0,0.77052409]
[1755873292215,0.00014439,115640.0,115620.0,0.77057409]
[1755873292339,0.00014439,115640.0,115620.0,0.2796]
[1755873292731,0.00461,115630.0,115620.0,0.2296]
[1755873292940,0.09149475,115630.0,115620.0,0.2296]
[1755873293350,0.00461,115630.0,115620.0,0.2296]
[1755873293782,0.00212,115630.0,115620.0,0.2316]
[1755873294237,0.00212,115630.0,115620.0,0.2296]
[1755873294456,0.00014439,115640.0,115620.0,0.23472]
[1755873294689,0.00014439,115640.0,115620.0,0.28167]
[1755873295346,0.00198,115630.0,115620.0,0.2796]
[1755873295560,0.00198,115630.0,115620.0,0.2792]
[1755873295761,0.00298,115630.0,115620.0,0.05]
[1755873295972,0.00198,115630.0,115620.0,0.05]
[1755873296185,0.00014439,115640.0,115620.0,0.28112]
[1755873296389,0.00199,115630.0,115620.0,0.28108]
[1755873296614,0.00014439,115640.0,115620.0,0.28213]
[1755873296902,0.00014439,115640.0,115630.0,0.59418615]
[1755873297106,0.00014439,115640.0,115630.0,0.93409409]
[1755873297733,0.00014439,115640.0,115630.0,0.50505475]
[1755873297967,0.00014439,115640.0,115630.0,1.04597884]
[1755873298202,0.00014439,115640.0,115630.0,0.50505475]
[1755873298636,0.00014439,115640.0,115630.0,1.04597884]
[1755873299083,0.00014439,115640.0,115630.0,1.04897884]
[1755873299517,0.00014439,115640.0,115630.0,1.21894433]
[1755873299737,0.00014439,115640.0,115630.0,1.04997884]
[1755873299994,0.00014439,115640.0,115630.0,1.05197884]
[1755873300451,0.00014439,115640.0,115630.0,0.50705475]
[1755873300687,0.00014439,115640.0,115630.0,1.04797884]
[1755873300900,0.00014439,115640.0,115630.0,0.50705475]
[1755873301391,0.00014439,115640.0,115630.0,0.11859]
[1755873301622,0.00226439,115640.0,115630.0,0.34816]
[1755873301858,0.00226439,115640.0,115630.0,0.34812]
[1755873302093,0.00226439,115640.0,115630.0,0.46452]
[1755873302332,0.00226439,115640.0,115630.0,1.22604409]
[1755873302333,0.00014439,115640.0,115630.0,1.22604409]
[1755873302574,0.00014439,115640.0,115630.0,1.22819409]
[1755873302838,0.00014439,115640.0,115630.0,1.34207884]
[1755873303326,0.17333554,115690.0,115650.0,0.05]
[1755873303554,0.15753428,115680.0,115660.0,0.22848]
[1755873303788,0.08688475,115680.0,115670.0,0.06652]
[1755873304015,0.0006028,115690.0,115670.0,0.06652]
[1755873304261,0.0006028,115690.0,115670.0,0.09286437]
[1755873305445,0.08748755,115690.0,115670.0,0.09286437]
[1755873306103,0.08748755,115690.0,115670.0,0.11886137]
[1755873306552,0.08748755,115690.0,115670.0,0.092517]
[1755873306788,0.08748755,115690.0,115680.0,0.2282]
[1755873307025,0.17347858,115690.0,115680.0,0.2282]
[1755873307221,0.17289073,115680.0,115670.0,0.06652]
[1755873307441,0.17289073,115680.0,115670.0,0.29468]
[1755873307660,0.26036333,115690.0,115670.0,0.29468]
[1755873307873,0.25977548,115680.0,115670.0,0.29468]
[1755873308104,0.08688475,115680.0,115670.0,0.29468]
[1755873308335,0.25977548,115680.0,115670.0,0.29468]
[1755873308560,0.08688475,115680.0,115670.0,0.29468]
[1755873308769,0.25977548,115680.0,115670.0,0.29468]
[1755873308973,0.17290621,115670.0,115650.0,0.026002]
[1755873309183,0.18153526,115680.0,115660.0,0.22812]
[1755873309633,0.17289073,115680.0,115660.0,0.22812]
[1755873309836,0.08688475,115670.0,115660.0,0.22812]
[1755873310075,0.08688475,115680.0,115660.0,0.2306]
[1755873310536,0.08688475,115680.0,115660.0,0.22812]
[1755873311214,0.2597783,115680.0,115650.0,0.05]
[1755873311437,0.08688475,115680.0,115670.0,0.228]
[1755873311662,0.08888475,115680.0,115670.0,0.22849]
[1755873311898,0.08888475,115680.0,115670.0,0.228]
[1755873312179,0.0006028,115690.0,115670.0,0.23296]
[1755873312371,0.0006028,115690.0,115680.0,0.06936]
[1755873312601,0.0006028,115690.0,115680.0,0.07143]
[1755873313050,0.0006028,115690.0,115680.0,0.074895]
[1755873313280,0.0006028,115690.0,115680.0,0.64081909]
[1755873313514,0.00066797,115700.0,115690.0,0.58787578]
[1755873313739,0.00067754,115720.0,115710.0,0.93092409]
[1755873313998,0.00067754,115720.0,115710.0,0.61995]
[1755873314234,0.00115864,115720.0,115710.0,0.27995]
[1755873314490,0.00189864,115720.0,115710.0,0.27788]
[1755873314725,0.00115864,115720.0,115710.0,0.05]
[1755873314956,0.00115864,115720.0,115710.0,0.31718091]
[1755873315181,0.00189864,115720.0,115710.0,0.2778]
[1755873315411,0.2616146,115720.0,115710.0,0.22776]
[1755873315649,0.2616146,115720.0,115710.0,0.22876]
[1755873315880,0.2616146,115720.0,115710.0,0.22872]
[1755873316138,0.2616146,115720.0,115710.0,0.22772]
[1755873316364,0.2616146,115720.0,115710.0,0.003]
[1755873316591,0.17286084,115700.0,115690.0,0.2942]
[1755873316827,0.17287578,115690.0,115660.0,0.11953]
[1755873317065,0.18150388,115700.0,115680.0,0.22768]
[1755873317328,0.17361578,115690.0,115680.0,0.22768]
[1755873317618,0.17361578,115690.0,115660.0,0.025998]
[1755873317619,0.18225956,115690.0,115660.0,0.025998]
[1755873317834,0.18153627,115680.0,115650.0,0.22786]
[1755873318043,0.18153627,115680.0,115650.0,0.22768]
[1755873318044,0.17292062,115660.0,115650.0,0.22768]
[1755873318262,0.17292062,115660.0,115640.0,0.025999]
[1755873318473,0.18230665,115660.0,115630.0,0.35255]
[1755873318686,0.18230665,115660.0,115630.0,0.30255]
[1755873318903,0.17293579,115650.0,115630.0,0.29956]
[1755873319119,0.17295053,115640.0,115630.0,0.06662439]
[1755873319326,0.17293579,115650.0,115630.0,0.00014439]
[1755873319537,0.08688475,115640.0,115630.0,0.00014439]
[1755873319763,0.26057528,115640.0,115630.0,0.00014439]
[1755873320184,0.26057528,115640.0,115630.0,0.00114439]
[1755873320603,0.26057528,115640.0,115630.0,0.00014439]
[1755873321020,0.26057528,115640.0,115630.0,0.00114439]
[1755873321243,0.26057528,115640.0,115630.0,0.00014439]
[1755873322272,0.60057528,115640.0,115630.0,0.00014439]
[1755873322724,0.08688475,115640.0,115630.0,0.00014439]
[1755873322940,0.08688475,115640.0,115630.0,0.00516439]
[1755873323158,0.17293826,115650.0,115630.0,0.00516439]
[1755873323385,0.08688475,115650.0,115640.0,0.003]
[1755873323626,0.25982033,115650.0,115630.0,0.00411439]
[1755873323838,0.17295053,115640.0,115630.0,0.00114439]
[1755873324064,0.17295053,115640.0,115630.0,0.00014439]
[1755873324483,0.26057528,115640.0,115630.0,0.00114439]
[1755873324710,0.08688475,115640.0,115630.0,0.00335439]
[1755873324930,0.18647397,115650.0,115630.0,0.00335439]
[1755873325141,0.10042314,115650.0,115630.0,0.00335439]
[1755873325353,0.27335882,115650.0,115630.0,0.00314439]
[1755873325530,0.08762475,115640.0,115630.0,0.00314439]
[1755873325740,0.08688475,115640.0,115630.0,0.00372439]
[1755873325952,0.18157946,115680.0,115630.0,0.00372439]
[1755873325953,0.00297,115700.0,115640.0,0.415]
[1755873326260,0.21043599,115710.0,115670.0,0.05]
[1755873326470,0.08688475,115700.0,115670.0,0.2886]
[1755873326687,0.26271592,115700.0,115670.0,0.29158]
[1755873326904,0.26271592,115700.0,115670.0,0.2886]
[1755873327111,0.26271592,115700.0,115670.0,0.2386]
[1755873327332,0.08788475,115700.0,115670.0,0.2886]
[1755873327591,0.08736585,115700.0,115670.0,0.2916]
[1755873327800,0.08736585,115700.0,115690.0,5e-05]
[1755873328012,0.08736585,115700.0,115680.0,0.003]
[1755873328225,0.0004811,115700.0,115690.0,0.00202]
[1755873328636,0.0022911,115700.0,115670.0,0.3136]
[1755873328995,0.0022911,115700.0,115670.0,0.31513]
[1755873329197,0.0014811,115700.0,115680.0,0.00153]
[1755873329404,0.0014811,115700.0,115690.0,0.00154]
[1755873329630,0.0014811,115700.0,115690.0,0.0027]
[1755873330071,0.0004811,115700.0,115690.0,0.0027]
[1755873330387,0.0004811,115700.0,115690.0,0.0777]
[1755873330541,0.0004811,115700.0,115690.0,0.78125698]
[1755873330710,0.0004811,115700.0,115690.0,0.16658475]
[1755873330925,0.0004811,115700.0,115690.0,0.87030267]
[1755873331118,0.0004811,115700.0,115690.0,1.20814173]
[1755873331330,0.0004811,115700.0,115690.0,0.50658475]
[1755873331760,0.0004811,115700.0,115690.0,0.31706]
[1755873332340,0.0004811,115700.0,115690.0,0.32206]
[1755873332577,0.0004811,115700.0,115690.0,0.32006]
[1755873332780,0.0004811,115700.0,115690.0,0.32106]
[1755873333116,0.0004811,115700.0,115690.0,0.2889]
[1755873333429,0.0004811,115700.0,115690.0,0.05389]
[1755873333636,0.0004811,115700.0,115690.0,0.2905]
[1755873333847,0.0004811,115700.0,115690.0,0.05554]
[1755873334028,0.0004811,115700.0,115690.0,0.29218]
[1755873334237,0.00081,115700.0,115690.0,0.054]
[1755873334433,0.17284917,115710.0,115690.0,0.05472]
[1755873334651,0.17284917,115710.0,115700.0,0.23712]
[1755873334935,0.17283146,115720.0,115700.0,0.23827]
[1755873335212,0.17283146,115720.0,115700.0,0.23712]
[1755873335213,0.1748859,115710.0,115700.0,0.23712]
[1755873335616,0.1748859,115710.0,115690.0,0.052]
[1755873335796,0.26835775,115720.0,115700.0,0.00114]
[1755873335970,0.25971621,115720.0,115700.0,0.23894]
[1755873336294,0.17283146,115720.0,115700.0,0.23894]
[1755873336502,0.1728459,115710.0,115700.0,0.23778]
[1755873336739,0.1728459,115710.0,115700.0,0.23764]
[1755873336943,0.17283146,115720.0,115700.0,0.23779]
[1755873337147,0.17283146,115720.0,115700.0,0.00115]
[1755873337350,0.17283146,115720.0,115710.0,0.23648]
[1755873337524,0.17364146,115720.0,115710.0,0.23648]